Workbook

Sheet Veriler
B2: Term | C2: Sales Qty
B3: 1 | C3: 95
B4: 2 | C4: 405
B5: 3 | C5: 470
B6: 4 | C6: 641
B7: 5 | C7: 643
B8: 6 | C8: 693
B9: 7 | C9: 694
B10: 8 | C10: 737
B11: 9 | C11: 759
B12: 10 | C12: 828
B13: 11 | C13: 909
B14: 12 | C14: 911
B15: 13 | C15: 964
B16: 14 | C16: 992
B17: 15 | C17: 1000
B18: 16 | C18: 1054
B19: 17 | C19: 1073
B20: 18 | C20: 1127
B21: 19 | C21: 1179
B22: 20 | C22: 1208
B23: 21 | C23: 1248
B24: 22 | C24: 1286
B25: 23 | C25: 1327
B26: 24 | C26: 1354
B27: 25 | C27: 1373
B28: 26 | C28: 1378
B29: 27 | C29: 1396
B30: 28 | C30: 1432
B31: 29 | C31: 1460
B32: 30 | C32: 1465
B33: 31 | C33: 1509
B34: 32 | C34: 1533
B35: 33
B36: 34
B37: 35
B38: 36

Sheet Sonuçlar
F2: Trend | G2: Parameter 1 | H2: Parameter 2 | I2: Formula | J2: Eligibility Rate
F3: Linear | G3: =SLOPE($C$10:$C$41,$B$10:$B$41) -> 37.80920088 | H3: =INTERCEPT($C$10:$C$41,$B$10:$B$41) -> 411.8669355 | I3: =lineer_formul($B$10:$B$45,$C$10:$C$45) -> y = 37,8092 * x + 411,86694 | J3: =RSQ($C$10:$C$41,$B$10:$B$41) -> 0.9503746072
F4: Logarithmic | G4: =INDEX(LINEST($C$10:$C$41,LN($B$10:$B$41)),1) -> 414.6220828 | H4: =INDEX(LINEST($C$10:$C$41,LN($B$10:$B$41)),1,2) -> -21.02284424 | I4: ="y = "&TEXT(G4,"#.0,0000")&" * ln(x) + " &TEXT(H4,"#.0,0000") -> y = 414.62208 * ln(x) + -21.02284 | J4: =RSQ(($C$10:$C$41),LN($B$10:$B$41)) -> 0.9513065566
F5: Power | G5: =EXP(INDEX(LINEST(LN($C$10:$C$41),LN($B$10:$B$41),,),1,2)) -> 201.685366 | H5: =INDEX(LINEST(LN($C$10:$C$41),LN($B$10:$B$41),,),1) -> 0.6030554767 | I5: ="y = "&TEXT(G5,"#.0,0000")&" * x^" &TEXT(H5,"#.0,0000") -> y = 201.68537 * x^.60306 | J5: =RSQ(LN($C$10:$C$41),LN($B$10:$B$41)) -> 0.9040270352
F6: Exponential | G6: =EXP(INDEX(LINEST(LN($C$10:$C$41),$B$10:$B$41),1,2)) -> 431.6244364 | H6: =INDEX(LINEST(LN($C$10:$C$41),$B$10:$B$41),1) -> 0.04703952909 | I6: ="y = "&TEXT(G6,"#.0,0000")&" * e^(" &TEXT(H6,"#.0,0000")&"x)" -> y = 431.62444 * e^(.04704x) | J6: =RSQ(LN($C$10:$C$41),$B$10:$B$41) -> 0.6608106176
B9: Term | C9: Sales Qty | E9: x | F9: y (Real) | G9: y (Linear) | H9: y (Logarithmic Forecast) | I9: y (Power Forecast) | J9: y (Exponential Forecast)
B10: 1 | C10: =IF(Veriler!C3="","-",IF(Veriler!C3<=0,0.000001,Veriler!C3)) -> 95 | E10: =B10 -> 1 | F10: =C10 -> 95 | G10: =$G$3*E10+$H$3 -> 449.6761364 | H10: =$G$4*LN(E10)+$H$4 -> -21.02284424 | I10: =$G$5*E10^$H$5 -> 201.685366 | J10: =$G$6 *EXP($H$6* E10) -> 452.4129546
B11: 2 | C11: =IF(Veriler!C4="","-",IF(Veriler!C4<=0,0.000001,Veriler!C4)) -> 405 | E11: 2 | F11: 405 | G11: 487.4853372 | H11: 266.3712834 | I11: 306.3459724 | J11: 474.2027193
B12: 3 | C12: =IF(Veriler!C5="","-",IF(Veriler!C5<=0,0.000001,Veriler!C5)) -> 470 | E12: 3 | F12: 470 | G12: 525.2945381 | H12: 434.486071 | I12: 391.2055191 | J12: 497.0419541
B13: 4 | C13: =IF(Veriler!C6="","-",IF(Veriler!C6<=0,0.000001,Veriler!C6)) -> 641 | E13: 4 | F13: 641 | G13: 563.103739 | H13: 553.7654111 | I13: 465.3181176 | J13: 520.981205
B14: 5 | C14: =IF(Veriler!C7="","-",IF(Veriler!C7<=0,0.000001,Veriler!C7)) -> 643 | E14: 5 | F14: 643 | G14: 600.9129399 | H14: 646.2856551 | I14: 532.3436483 | J14: 546.0734527
B15: 6 | C15: =IF(Veriler!C8="","-",IF(Veriler!C8<=0,0.000001,Veriler!C8)) -> 693 | E15: 6 | F15: 693 | G15: 638.7221408 | H15: 721.8801987 | I15: 594.2138371 | J15: 572.3742293
B16: 7 | C16: =IF(Veriler!C9="","-",IF(Veriler!C9<=0,0.000001,Veriler!C9)) -> 694 | E16: 7 | F16: 694 | G16: 676.5313416 | H16: 785.7944746 | I16: 652.1017848 | J16: 599.9417419
B17: 8 | C17: =IF(Veriler!C10="","-",IF(Veriler!C10<=0,0.000001,Veriler!C10)) -> 737 | E17: 8 | F17: 737 | G17: 714.3405425 | H17: 841.1595388 | I17: 706.7856935 | J17: 628.8370007
B18: 9 | C18: =IF(Veriler!C11="","-",IF(Veriler!C11<=0,0.000001,Veriler!C11)) -> 759 | E18: 9 | F18: 759 | G18: 752.1497434 | H18: 889.9949863 | I18: 758.8143912 | J18: =$G$6 *EXP($H$6* E18) -> 659.1239546
B19: 10 | C19: =IF(Veriler!C12="","-",IF(Veriler!C12<=0,0.000001,Veriler!C12)) -> 828 | E19: 10 | F19: 828 | G19: 789.9589443 | H19: 933.6797828 | I19: 808.5927893 | J19: 690.8696324
B20: 11 | C20: =IF(Veriler!C13="","-",IF(Veriler!C13<=0,0.000001,Veriler!C13)) -> 909 | E20: 11 | F20: 909 | G20: 827.7681452 | H20: 973.197488 | I20: 856.4301534 | J20: 724.1442913
B21: 12 | C21: =IF(Veriler!C14="","-",IF(Veriler!C14<=0,0.000001,Veriler!C14)) -> 911 | E21: 12 | F21: 911 | G21: 865.577346 | H21: 1009.274326 | I21: 902.5692811 | J21: 759.0215723
B22: 13 | C22: =IF(Veriler!C15="","-",IF(Veriler!C15<=0,0.000001,Veriler!C15)) -> 964 | E22: 13 | F22: 964 | G22: 903.3865469 | H22: 1042.461801 | I22: 947.2050979 | J22: 795.5786632
B23: 14 | C23: =IF(Veriler!C16="","-",IF(Veriler!C16<=0,0.000001,Veriler!C16)) -> 992 | E23: 14 | F23: =C23 -> 992 | G23: =$G$3*E23+$H$3 -> 941.1957478 | H23: 1073.188602 | I23: 990.4970271 | J23: 833.8964694
B24: 15 | C24: =IF(Veriler!C17="","-",IF(Veriler!C17<=0,0.000001,Veriler!C17)) -> 1000 | E24: 15 | F24: =C24 -> 1000 | G24: 979.0049487 | H24: 1101.79457 | I24: 1032.577512 | J24: 874.059793
B25: 16 | C25: =IF(Veriler!C18="","-",IF(Veriler!C18<=0,0.000001,Veriler!C18)) -> 1054 | E25: 16 | F25: =C25 -> 1054 | G25: 1016.81415 | H25: 1128.553666 | I25: 1073.558062 | J25: 916.1575204
B26: 17 | C26: =IF(Veriler!C19="","-",IF(Veriler!C19<=0,0.000001,Veriler!C19)) -> 1073 | E26: 17 | F26: =C26 -> 1073 | G26: 1054.62335 | H26: 1153.689973 | I26: 1113.533657 | J26: 960.2828193
B27: 18 | C27: =IF(Veriler!C20="","-",IF(Veriler!C20<=0,0.000001,Veriler!C20)) -> 1127 | E27: 18 | F27: 1127 | G27: 1092.432551 | H27: 1177.389114 | I27: 1152.586017 | J27: 1006.533344
B28: 19 | C28: =IF(Veriler!C21="","-",IF(Veriler!C21<=0,0.000001,Veriler!C21)) -> 1179 | E28: 19 | F28: 1179 | G28: 1130.241752 | H28: 1199.806578 | I28: 1190.786082 | J28: 1055.011454
B29: 20 | C29: =IF(Veriler!C22="","-",IF(Veriler!C22<=0,0.000001,Veriler!C22)) -> 1208 | E29: 20 | F29: 1208 | G29: 1168.050953 | H29: 1221.07391 | I29: 1228.195924 | J29: 1105.824436
B30: 21 | C30: =IF(Veriler!C23="","-",IF(Veriler!C23<=0,0.000001,Veriler!C23)) -> 1248 | E30: 21 | F30: 1248 | G30: 1205.860154 | H30: 1241.30339 | I30: 1264.87024 | J30: 1159.084746
B31: 22 | C31: =IF(Veriler!C24="","-",IF(Veriler!C24<=0,0.000001,Veriler!C24)) -> 1286 | E31: 22 | F31: 1286 | G31: 1243.669355 | H31: 1260.591616 | I31: 1300.857536 | J31: 1214.910256
B32: 23 | C32: =IF(Veriler!C25="","-",IF(Veriler!C25<=0,0.000001,Veriler!C25)) -> 1327 | E32: 23 | F32: 1327 | G32: 1281.478556 | H32: 1279.022298 | I32: 1336.201075 | J32: 1273.424515
B33: 24 | C33: =IF(Veriler!C26="","-",IF(Veriler!C26<=0,0.000001,Veriler!C26)) -> 1354 | E33: 24 | F33: 1354 | G33: 1319.287757 | H33: 1296.668454 | I33: 1370.939646 | J33: 1334.757022
B34: 25 | C34: =IF(Veriler!C27="","-",IF(Veriler!C27<=0,0.000001,Veriler!C27)) -> 1373 | E34: 25 | F34: 1373 | G34: 1357.096957 | H34: 1313.594154 | I34: 1405.108192 | J34: 1399.043513
B35: 26 | C35: =IF(Veriler!C28="","-",IF(Veriler!C28<=0,0.000001,Veriler!C28)) -> 1378 | E35: 26 | F35: 1378 | G35: 1394.906158 | H35: 1329.855928 | I35: 1438.738331 | J35: 1466.426263
B36: 27 | C36: =IF(Veriler!C29="","-",IF(Veriler!C29<=0,0.000001,Veriler!C29)) -> 1396 | E36: 27 | F36: 1396 | G36: 1432.715359 | H36: 1345.503902 | I36: 1471.858786 | J36: 1537.054398
B37: 28 | C37: =IF(Veriler!C30="","-",IF(Veriler!C30<=0,0.000001,Veriler!C30)) -> 1432 | E37: 28 | F37: 1432 | G37: 1470.52456 | H37: 1360.58273 | I37: 1504.495745 | J37: 1611.084227
B38: 29 | C38: =IF(Veriler!C31="","-",IF(Veriler!C31<=0,0.000001,Veriler!C31)) -> 1460 | E38: 29 | F38: 1460 | G38: 1508.333761 | H38: 1375.132366 | I38: 1536.673172 | J38: 1688.679588
B39: 30 | C39: =IF(Veriler!C32="","-",IF(Veriler!C32<=0,0.000001,Veriler!C32)) -> 1465 | E39: 30 | F39: 1465 | G39: 1546.142962 | H39: 1389.188698 | I39: 1568.41306 | J39: 1770.012208
B40: 31 | C40: =IF(Veriler!C33="","-",IF(Veriler!C33<=0,0.000001,Veriler!C33)) -> 1509 | E40: 31 | F40: 1509 | G40: 1583.952163 | H40: 1402.784083 | I40: 1599.735656 | J40: 1855.262087
B41: 32 | C41: =IF(Veriler!C34="","-",IF(Veriler!C34<=0,0.000001,Veriler!C34)) -> 1533 | E41: 32 | F41: 1533 | G41: 1621.761364 | H41: 1415.947794 | I41: 1630.659651 | J41: 1944.617893
B42: 33 | C42: =IF(Veriler!C35="","-",IF(Veriler!C35<=0,0.000001,Veriler!C35)) -> - | E42: 33 | F42: - | G42: 1659.570565 | H42: 1428.706403 | I42: 1661.202344 | J42: 2038.277383
B43: 34 | C43: =IF(Veriler!C36="","-",IF(Veriler!C36<=0,0.000001,Veriler!C36)) -> - | E43: 34 | F43: - | G43: 1697.379765 | H43: 1441.084101 | I43: 1691.379786 | J43: 2136.447836
B44: 35 | C44: =IF(Veriler!C37="","-",IF(Veriler!C37<=0,0.000001,Veriler!C37)) -> - | E44: 35 | F44: - | G44: 1735.188966 | H44: 1453.102974 | I44: 1721.206898 | J44: 2239.346516
B45: 36 | C45: =IF(Veriler!C38="","-",IF(Veriler!C38<=0,0.000001,Veriler!C38)) -> - | E45: =B45 -> 36 | F45: =C45 -> - | G45: =$G$3*E45+$H$3 -> 1772.998167 | H45: =$G$4*LN(E45)+$H$4 -> 1464.783242 | I45: =$G$5*E45^$H$5 -> 1750.69759 | J45: =$G$6 *EXP($H$6* E45) -> 2347.20115
B46: 37 | C46: =IF(Veriler!C39="","-",IF(Veriler!C39<=0,0.000001,Veriler!C39)) -> - | E46: 37 | F46: - | G46: 1810.807368 | H46: 1476.143461 | I46: 1779.864847 | J46: 2460.250434
B47: 38 | C47: =IF(Veriler!C40="","-",IF(Veriler!C40<=0,0.000001,Veriler!C40)) -> - | E47: 38 | F47: - | G47: 1848.616569 | H47: 1487.200706 | I47: 1808.720819 | J47: 2578.744562
B48: 39 | C48: =IF(Veriler!C41="","-",IF(Veriler!C41<=0,0.000001,Veriler!C41)) -> - | E48: 39 | F48: - | G48: 1886.42577 | H48: 1497.970716 | I48: 1837.276891 | J48: 2702.945774
B49: 40 | C49: =IF(Veriler!C42="","-",IF(Veriler!C42<=0,0.000001,Veriler!C42)) -> - | E49: 40 | F49: - | G49: 1924.234971 | H49: 1508.468038 | I49: 1865.543754 | J49: 2833.128944
B50: 41 | C50: =IF(Veriler!C43="","-",IF(Veriler!C43<=0,0.000001,Veriler!C43)) -> - | E50: 41 | F50: - | G50: 1962.044172 | H50: 1518.706141 | I50: 1893.53146 | J50: 2969.582183
B51: 42 | C51: =IF(Veriler!C44="","-",IF(Veriler!C44<=0,0.000001,Veriler!C44)) -> - | E51: 42 | F51: - | G51: 1999.853372 | H51: 1528.697518 | I51: 1921.249476 | J51: 3112.60748
B52: 43 | C52: =IF(Veriler!C45="","-",IF(Veriler!C45<=0,0.000001,Veriler!C45)) -> - | E52: 43 | F52: - | G52: 2037.662573 | H52: 1538.453781 | I52: 1948.706733 | J52: 3262.521367
B53: 44 | C53: =IF(Veriler!C46="","-",IF(Veriler!C46<=0,0.000001,Veriler!C46)) -> - | E53: 44 | F53: - | G53: 2075.471774 | H53: 1547.985743 | I53: 1975.911663 | J53: 3419.655623
B54: 45 | C54: =IF(Veriler!C47="","-",IF(Veriler!C47<=0,0.000001,Veriler!C47)) -> - | E54: 45 | F54: - | G54: 2113.280975 | H54: 1557.303486 | I54: 2002.872244 | J54: 3584.358006
B55: 46 | C55: =IF(Veriler!C48="","-",IF(Veriler!C48<=0,0.000001,Veriler!C48)) -> - | E55: 46 | F55: - | G55: 2151.090176 | H55: 1566.416426 | I55: 2029.596028 | J55: 3756.993022
B56: 47 | C56: =IF(Veriler!C49="","-",IF(Veriler!C49<=0,0.000001,Veriler!C49)) -> - | E56: 47 | F56: - | G56: 2188.899377 | H56: 1575.333373 | I56: 2056.090177 | J56: 3937.942734
B57: 48 | C57: =IF(Veriler!C50="","-",IF(Veriler!C50<=0,0.000001,Veriler!C50)) -> - | E57: 48 | F57: - | G57: 2226.708578 | H57: 1584.062582 | I57: 2082.361489 | J57: 4127.607608
B58: 49 | C58: =IF(Veriler!C51="","-",IF(Veriler!C51<=0,0.000001,Veriler!C51)) -> - | E58: 49 | F58: - | G58: 2264.517779 | H58: 1592.611794 | I58: 2108.416422 | J58: 4326.407394
B59: 50 | C59: =IF(Veriler!C52="","-",IF(Veriler!C52<=0,0.000001,Veriler!C52)) -> - | E59: 50 | F59: - | G59: 2302.326979 | H59: 1600.988282 | I59: 2134.261122 | J59: 4534.782062
B60: 51 | C60: =IF(Veriler!C53="","-",IF(Veriler!C53<=0,0.000001,Veriler!C53)) -> - | E60: 51 | F60: - | G60: 2340.13618 | H60: 1609.198889 | I60: 2159.90144 | J60: 4753.192772
B61: 52 | C61: =IF(Veriler!C54="","-",IF(Veriler!C54<=0,0.000001,Veriler!C54)) -> - | E61: 52 | F61: - | G61: 2377.945381 | H61: 1617.250056 | I61: 2185.342953 | J61: 4982.122892
B62: 53 | C62: =IF(Veriler!C55="","-",IF(Veriler!C55<=0,0.000001,Veriler!C55)) -> - | E62: 53 | F62: - | G62: 2415.754582 | H62: 1625.147858 | I62: 2210.590982 | J62: 5222.079075
B63: 54 | C63: =IF(Veriler!C56="","-",IF(Veriler!C56<=0,0.000001,Veriler!C56)) -> - | E63: 54 | F63: - | G63: 2453.563783 | H63: 1632.898029 | I63: 2235.650608 | J63: 5473.592374
B64: 55 | C64: =IF(Veriler!C57="","-",IF(Veriler!C57<=0,0.000001,Veriler!C57)) -> - | E64: 55 | F64: - | G64: 2491.372984 | H64: 1640.505987 | I64: 2260.526688 | J64: 5737.219418
B65: 56 | C65: =IF(Veriler!C58="","-",IF(Veriler!C58<=0,0.000001,Veriler!C58)) -> - | E65: 56 | F65: - | G65: 2529.182185 | H65: 1647.976858 | I65: 2285.223868 | J65: 6013.543648
B66: 57 | C66: =IF(Veriler!C59="","-",IF(Veriler!C59<=0,0.000001,Veriler!C59)) -> - | E66: 57 | F66: - | G66: 2566.991386 | H66: 1655.315493 | I66: 2309.746595 | J66: 6303.176604
B67: 58 | C67: =IF(Veriler!C60="","-",IF(Veriler!C60<=0,0.000001,Veriler!C60)) -> - | E67: 58 | F67: - | G67: 2604.800587 | H67: 1662.526494 | I67: 2334.09913 | J67: 6606.75928
B68: 59 | C68: =IF(Veriler!C61="","-",IF(Veriler!C61<=0,0.000001,Veriler!C61)) -> - | E68: 59 | F68: - | G68: 2642.609787 | H68: 1669.614223 | I68: 2358.285558 | J68: 6924.963542
B69: 60 | C69: =IF(Veriler!C62="","-",IF(Veriler!C62<=0,0.000001,Veriler!C62)) -> - | E69: 60 | F69: - | G69: 2680.418988 | H69: 1676.582826 | I69: 2382.309801 | J69: 7258.493617
B70: 61 | C70: =IF(Veriler!C63="","-",IF(Veriler!C63<=0,0.000001,Veriler!C63)) -> - | E70: 61 | F70: - | G70: 2718.228189 | H70: 1683.436239 | I70: 2406.17562 | J70: 7608.087647
B71: 62 | C71: =IF(Veriler!C64="","-",IF(Veriler!C64<=0,0.000001,Veriler!C64)) -> - | E71: 62 | F71: - | G71: 2756.03739 | H71: 1690.17821 | I71: 2429.886634 | J71: 7974.519329
B72: 63 | C72: =IF(Veriler!C65="","-",IF(Veriler!C65<=0,0.000001,Veriler!C65)) -> - | E72: 63 | F72: - | G72: 2793.846591 | H72: 1696.812305 | I72: 2453.44632 | J72: 8358.599622
B73: 64 | C73: =IF(Veriler!C66="","-",IF(Veriler!C66<=0,0.000001,Veriler!C66)) -> - | E73: 64 | F73: - | G73: 2831.655792 | H73: 1703.341922 | I73: 2476.858022 | J73: 8761.178544
B74: 65 | C74: =IF(Veriler!C67="","-",IF(Veriler!C67<=0,0.000001,Veriler!C67)) -> - | E74: 65 | F74: - | G74: 2869.464993 | H74: 1709.7703 | I74: 2500.12496 | J74: 9183.147052
B75: 66 | C75: =IF(Veriler!C68="","-",IF(Veriler!C68<=0,0.000001,Veriler!C68)) -> - | E75: 66 | F75: - | G75: 2907.274194 | H75: 1716.100531 | I75: 2523.250238 | J75: 9625.439015
B76: 67 | C76: =IF(Veriler!C69="","-",IF(Veriler!C69<=0,0.000001,Veriler!C69)) -> - | E76: 67 | F76: - | G76: 2945.083394 | H76: 1722.335567 | I76: 2546.236844 | J76: 10089.03328
B77: 68 | C77: =IF(Veriler!C70="","-",IF(Veriler!C70<=0,0.000001,Veriler!C70)) -> - | E77: 68 | F77: - | G77: 2982.892595 | H77: 1728.478229 | I77: 2569.087661 | J77: 10574.95584
B78: 69 | C78: =IF(Veriler!C71="","-",IF(Veriler!C71<=0,0.000001,Veriler!C71)) -> - | E78: 69 | F78: - | G78: 3020.701796 | H78: 1734.531213 | I78: 2591.805472 | J78: 11084.28211
B79: 70 | C79: =IF(Veriler!C72="","-",IF(Veriler!C72<=0,0.000001,Veriler!C72)) -> - | E79: 70 | F79: - | G79: 3058.510997 | H79: 1740.497102 | I79: 2614.392961 | J79: 11618.13928
B80: 71 | C80: =IF(Veriler!C73="","-",IF(Veriler!C73<=0,0.000001,Veriler!C73)) -> - | E80: 71 | F80: - | G80: 3096.320198 | H80: 1746.378365 | I80: 2636.852721 | J80: 12177.70884
B81: 72 | C81: =IF(Veriler!C74="","-",IF(Veriler!C74<=0,0.000001,Veriler!C74)) -> - | E81: 72 | F81: - | G81: 3134.129399 | H81: 1752.177369 | I81: 2659.18726 | J81: 12764.22921
B82: 73 | C82: =IF(Veriler!C75="","-",IF(Veriler!C75<=0,0.000001,Veriler!C75)) -> - | E82: 73 | F82: - | G82: 3171.9386 | H82: 1757.896385 | I82: 2681.399 | J82: 13378.99841
B83: 74 | C83: =IF(Veriler!C76="","-",IF(Veriler!C76<=0,0.000001,Veriler!C76)) -> - | E83: 74 | F83: - | G83: 3209.747801 | H83: 1763.537589 | I83: 2703.490285 | J83: 14023.37701
B84: 75 | C84: =IF(Veriler!C77="","-",IF(Veriler!C77<=0,0.000001,Veriler!C77)) -> - | E84: 75 | F84: - | G84: 3247.557001 | H84: 1769.10307 | I84: 2725.463382 | J84: 14698.79111
B85: 76 | C85: =IF(Veriler!C78="","-",IF(Veriler!C78<=0,0.000001,Veriler!C78)) -> - | E85: 76 | F85: - | G85: 3285.366202 | H85: 1774.594833 | I85: 2747.320488 | J85: 15406.73547
B86: 77 | C86: =IF(Veriler!C79="","-",IF(Veriler!C79<=0,0.000001,Veriler!C79)) -> - | E86: 77 | F86: - | G86: 3323.175403 | H86: 1780.014807 | I86: 2769.063729 | J86: 16148.77687
B87: 78 | C87: =IF(Veriler!C80="","-",IF(Veriler!C80<=0,0.000001,Veriler!C80)) -> - | E87: 78 | F87: - | G87: 3360.984604 | H87: 1785.364843 | I87: 2790.695166 | J87: 16926.55753
B88: 79 | C88: =IF(Veriler!C81="","-",IF(Veriler!C81<=0,0.000001,Veriler!C81)) -> - | E88: 79 | F88: - | G88: 3398.793805 | H88: 1790.646725 | I88: 2812.216795 | J88: 17741.79879
B89: 80 | C89: =IF(Veriler!C82="","-",IF(Veriler!C82<=0,0.000001,Veriler!C82)) -> - | E89: 80 | F89: - | G89: 3436.603006 | H89: 1795.862166 | I89: 2833.630554 | J89: 18596.30488
B90: 81 | C90: =IF(Veriler!C83="","-",IF(Veriler!C83<=0,0.000001,Veriler!C83)) -> - | E90: 81 | F90: - | G90: 3474.412207 | H90: 1801.012817 | I90: 2854.938323 | J90: 19491.96691
B91: 82 | C91: =IF(Veriler!C84="","-",IF(Veriler!C84<=0,0.000001,Veriler!C84)) -> - | E91: 82 | F91: - | G91: 3512.221408 | H91: 1806.100268 | I91: 2876.141923 | J91: 20430.76711
B92: 83 | C92: =IF(Veriler!C85="","-",IF(Veriler!C85<=0,0.000001,Veriler!C85)) -> - | E92: 83 | F92: - | G92: 3550.030609 | H92: 1811.126052 | I92: 2897.243127 | J92: 21414.78316
B93: 84 | C93: =IF(Veriler!C86="","-",IF(Veriler!C86<=0,0.000001,Veriler!C86)) -> - | E93: 84 | F93: - | G93: 3587.839809 | H93: 1816.091645 | I93: 2918.243653 | J93: 22446.19281
B94: 85 | C94: =IF(Veriler!C87="","-",IF(Veriler!C87<=0,0.000001,Veriler!C87)) -> - | E94: 85 | F94: - | G94: 3625.64901 | H94: 1820.998473 | I94: 2939.145171 | J94: 23527.2787
B95: 86 | C95: =IF(Veriler!C88="","-",IF(Veriler!C88<=0,0.000001,Veriler!C88)) -> - | E95: 86 | F95: - | G95: 3663.458211 | H95: 1825.847909 | I95: 2959.949306 | J95: 24660.43341
B96: 87 | C96: =IF(Veriler!C89="","-",IF(Veriler!C89<=0,0.000001,Veriler!C89)) -> - | E96: 87 | F96: - | G96: 3701.267412 | H96: 1830.641281 | I96: 2980.657635 | J96: 25848.16474
B97: 88 | C97: =IF(Veriler!C90="","-",IF(Veriler!C90<=0,0.000001,Veriler!C90)) -> - | E97: 88 | F97: - | G97: 3739.076613 | H97: 1835.379871 | I97: 3001.271694 | J97: 27093.10131
B98: 89 | C98: =IF(Veriler!C91="","-",IF(Veriler!C91<=0,0.000001,Veriler!C91)) -> - | E98: 89 | F98: - | G98: 3776.885814 | H98: 1840.064916 | I98: 3021.792975 | J98: 28397.9983
B99: 90 | C99: =IF(Veriler!C92="","-",IF(Veriler!C92<=0,0.000001,Veriler!C92)) -> - | E99: 90 | F99: - | G99: 3814.695015 | H99: 1844.697613 | I99: 3042.222931 | J99: 29765.74362
B100: 91 | C100: =IF(Veriler!C93="","-",IF(Veriler!C93<=0,0.000001,Veriler!C93)) -> - | E100: 91 | F100: - | G100: 3852.504216 | H100: 1849.279119 | I100: 3062.562978 | J100: 31199.36426
B101: 92 | C101: =IF(Veriler!C94="","-",IF(Veriler!C94<=0,0.000001,Veriler!C94)) -> - | E101: 92 | F101: - | G101: 3890.313416 | H101: 1853.810553 | I101: 3082.814491 | J101: 32702.03301
B102: 93 | C102: =IF(Veriler!C95="","-",IF(Veriler!C95<=0,0.000001,Veriler!C95)) -> - | E102: 93 | F102: - | G102: 3928.122617 | H102: 1858.292998 | I102: 3102.978814 | J102: 34277.07545
B103: 94 | C103: =IF(Veriler!C96="","-",IF(Veriler!C96<=0,0.000001,Veriler!C96)) -> - | E103: 94 | F103: - | G103: 3965.931818 | H103: 1862.727501 | I103: 3123.057252 | J103: 35927.97736
B104: 95 | C104: =IF(Veriler!C97="","-",IF(Veriler!C97<=0,0.000001,Veriler!C97)) -> - | E104: 95 | F104: - | G104: 4003.741019 | H104: 1867.115077 | I104: 3143.051079 | J104: 37658.39239
B105: 96 | C105: =IF(Veriler!C98="","-",IF(Veriler!C98<=0,0.000001,Veriler!C98)) -> - | E105: 96 | F105: - | G105: 4041.55022 | H105: 1871.456709 | I105: 3162.961538 | J105: 39472.15015
B106: 97 | C106: =IF(Veriler!C99="","-",IF(Veriler!C99<=0,0.000001,Veriler!C99)) -> - | E106: 97 | F106: - | G106: 4079.359421 | H106: 1875.75335 | I106: 3182.789838 | J106: 41373.26474
B107: 98 | C107: =IF(Veriler!C100="","-",IF(Veriler!C100<=0,0.000001,Veriler!C100)) -> - | E107: 98 | F107: - | G107: 4117.168622 | H107: 1880.005921 | I107: 3202.53716 | J107: 43365.94354
B108: 99 | C108: =IF(Veriler!C101="","-",IF(Veriler!C101<=0,0.000001,Veriler!C101)) -> - | E108: 99 | F108: - | G108: 4154.977823 | H108: 1884.215319 | I108: 3222.204657 | J108: 45454.59661
B109: 100 | C109: =IF(Veriler!C102="","-",IF(Veriler!C102<=0,0.000001,Veriler!C102)) -> - | E109: =B109 -> 100 | F109: =C109 -> - | G109: =$G$3*E109+$H$3 -> 4192.787023 | H109: =$G$4*LN(E109)+$H$4 -> 1888.38241 | I109: =$G$5*E109^$H$5 -> 3241.793453 | J109: =$G$6 *EXP($H$6* E109) -> 47643.8464
B110: 101 | C110: =IF(Veriler!C103="","-",IF(Veriler!C103<=0,0.000001,Veriler!C103)) -> - | E110: 101 | F110: - | G110: 4230.596224 | H110: 1892.508037 | I110: 3261.304645 | J110: 49938.538
B111: 102 | C111: =IF(Veriler!C104="","-",IF(Veriler!C104<=0,0.000001,Veriler!C104)) -> - | E111: 102 | F111: - | G111: 4268.405425 | H111: 1896.593016 | I111: 3280.739303 | J111: 52343.74984
B112: 103 | C112: =IF(Veriler!C105="","-",IF(Veriler!C105<=0,0.000001,Veriler!C105)) -> - | E112: 103 | F112: - | G112: 4306.214626 | H112: 1900.638142 | I112: 3300.098476 | J112: 54864.80496
B113: 104 | C113: =IF(Veriler!C106="","-",IF(Veriler!C106<=0,0.000001,Veriler!C106)) -> - | E113: 104 | F113: - | G113: 4344.023827 | H113: 1904.644184 | I113: 3319.383183 | J113: 57507.28277
B114: 105 | C114: =IF(Veriler!C107="","-",IF(Veriler!C107<=0,0.000001,Veriler!C107)) -> - | E114: 105 | F114: - | G114: 4381.833028 | H114: 1908.611889 | I114: 3338.594424 | J114: 60277.0314
B115: 106 | C115: =IF(Veriler!C108="","-",IF(Veriler!C108<=0,0.000001,Veriler!C108)) -> - | E115: 106 | F115: - | G115: 4419.642229 | H115: 1912.541986 | I115: 3357.733174 | J115: 63180.18066
B116: 107 | C116: =IF(Veriler!C109="","-",IF(Veriler!C109<=0,0.000001,Veriler!C109)) -> - | E116: 107 | F116: - | G116: 4457.45143 | H116: 1916.43518 | I116: 3376.800387 | J116: 66223.15557
B117: 108 | C117: =IF(Veriler!C110="","-",IF(Veriler!C110<=0,0.000001,Veriler!C110)) -> - | E117: 108 | F117: - | G117: 4495.26063 | H117: 1920.292157 | I117: 3395.796995 | J117: 69412.69063
B118: 109 | C118: =IF(Veriler!C111="","-",IF(Veriler!C111<=0,0.000001,Veriler!C111)) -> - | E118: 109 | F118: - | G118: 4533.069831 | H118: 1924.113586 | I118: 3414.723909 | J118: 72755.84468
B119: 110 | C119: =IF(Veriler!C112="","-",IF(Veriler!C112<=0,0.000001,Veriler!C112)) -> - | E119: 110 | F119: - | G119: 4570.879032 | H119: 1927.900115 | I119: 3433.582022 | J119: 76260.01652
B120: 111 | C120: =IF(Veriler!C113="","-",IF(Veriler!C113<=0,0.000001,Veriler!C113)) -> - | E120: 111 | F120: - | G120: 4608.688233 | H120: 1931.652377 | I120: 3452.372205 | J120: 79932.96135
B121: 112 | C121: =IF(Veriler!C114="","-",IF(Veriler!C114<=0,0.000001,Veriler!C114)) -> - | E121: 112 | F121: - | G121: 4646.497434 | H121: 1935.370985 | I121: 3471.095312 | J121: 83782.80783
B122: 113 | C122: =IF(Veriler!C115="","-",IF(Veriler!C115<=0,0.000001,Veriler!C115)) -> - | E122: 113 | F122: - | G122: 4684.306635 | H122: 1939.056539 | I122: 3489.752177 | J122: 87818.07617
B123: 114 | C123: =IF(Veriler!C116="","-",IF(Veriler!C116<=0,0.000001,Veriler!C116)) -> - | E123: 114 | F123: - | G123: 4722.115836 | H123: 1942.709621 | I123: 3508.343619 | J123: 92047.69692
B124: 115 | C124: =IF(Veriler!C117="","-",IF(Veriler!C117<=0,0.000001,Veriler!C117)) -> - | E124: 115 | F124: - | G124: 4759.925037 | H124: 1946.330797 | I124: 3526.870438 | J124: 96481.03076
B125: 116 | C125: =IF(Veriler!C118="","-",IF(Veriler!C118<=0,0.000001,Veriler!C118)) -> - | E125: 116 | F125: - | G125: 4797.734238 | H125: 1949.920621 | I125: 3545.333418 | J125: 101127.8892
B126: 117 | C126: =IF(Veriler!C119="","-",IF(Veriler!C119<=0,0.000001,Veriler!C119)) -> - | E126: 117 | F126: - | G126: 4835.543438 | H126: 1953.479631 | I126: 3563.733325 | J126: 105998.5564
B127: 118 | C127: =IF(Veriler!C120="","-",IF(Veriler!C120<=0,0.000001,Veriler!C120)) -> - | E127: 118 | F127: - | G127: 4873.352639 | H127: 1957.008351 | I127: 3582.070912 | J127: 111103.8116
B128: 119 | C128: =IF(Veriler!C121="","-",IF(Veriler!C121<=0,0.000001,Veriler!C121)) -> - | E128: 119 | F128: - | G128: 4911.16184 | H128: 1960.507292 | I128: 3600.346915 | J128: 116454.9535
B129: 120 | C129: =IF(Veriler!C122="","-",IF(Veriler!C122<=0,0.000001,Veriler!C122)) -> - | E129: 120 | F129: - | G129: 4948.971041 | H129: 1963.976953 | I129: 3618.562056 | J129: 122063.8248
B130: 121 | C130: =IF(Veriler!C123="","-",IF(Veriler!C123<=0,0.000001,Veriler!C123)) -> - | E130: 121 | F130: - | G130: 4986.780242 | H130: 1967.41782 | I130: 3636.717043 | J130: 127942.8387
B131: 122 | C131: =IF(Veriler!C124="","-",IF(Veriler!C124<=0,0.000001,Veriler!C124)) -> - | E131: 122 | F131: - | G131: 5024.589443 | H131: 1970.830367 | I131: 3654.812568 | J131: 134105.006
B132: 123 | C132: =IF(Veriler!C125="","-",IF(Veriler!C125<=0,0.000001,Veriler!C125)) -> - | E132: 123 | F132: - | G132: 5062.398644 | H132: 1974.215056 | I132: 3672.849312 | J132: 140563.9646
B133: 124 | C133: =IF(Veriler!C126="","-",IF(Veriler!C126<=0,0.000001,Veriler!C126)) -> - | E133: 124 | F133: - | G133: 5100.207845 | H133: 1977.572338 | I133: 3690.827941 | J133: 147334.0089
B134: 125 | C134: =IF(Veriler!C127="","-",IF(Veriler!C127<=0,0.000001,Veriler!C127)) -> - | E134: 125 | F134: - | G134: 5138.017045 | H134: 1980.902654 | I134: 3708.749109 | J134: 154430.1217
B135: 126 | C135: =IF(Veriler!C128="","-",IF(Veriler!C128<=0,0.000001,Veriler!C128)) -> - | E135: 126 | F135: - | G135: 5175.826246 | H135: 1984.206433 | I135: 3726.613456 | J135: 161868.0078
B136: 127 | C136: =IF(Veriler!C129="","-",IF(Veriler!C129<=0,0.000001,Veriler!C129)) -> - | E136: 127 | F136: - | G136: 5213.635447 | H136: 1987.484095 | I136: 3744.421612 | J136: 169664.1281
B137: 128 | C137: =IF(Veriler!C130="","-",IF(Veriler!C130<=0,0.000001,Veriler!C130)) -> - | E137: 128 | F137: - | G137: 5251.444648 | H137: 1990.736049 | I137: 3762.174195 | J137: 177835.7364
B138: 129 | C138: =IF(Veriler!C131="","-",IF(Veriler!C131<=0,0.000001,Veriler!C131)) -> - | E138: 129 | F138: - | G138: 5289.253849 | H138: 1993.962697 | I138: 3779.871808 | J138: 186400.9174
B139: 130 | C139: =IF(Veriler!C132="","-",IF(Veriler!C132<=0,0.000001,Veriler!C132)) -> - | E139: 130 | F139: - | G139: 5327.06305 | H139: 1997.164428 | I139: 3797.515048 | J139: 195378.627
B140: 131 | C140: =IF(Veriler!C133="","-",IF(Veriler!C133<=0,0.000001,Veriler!C133)) -> - | E140: 131 | F140: - | G140: 5364.872251 | H140: 2000.341624 | I140: 3815.104497 | J140: 204788.734
B141: 132 | C141: =IF(Veriler!C134="","-",IF(Veriler!C134<=0,0.000001,Veriler!C134)) -> - | E141: 132 | F141: - | G141: 5402.681452 | H141: 2003.494659 | I141: 3832.640728 | J141: 214652.0642
B142: 133 | C142: =IF(Veriler!C135="","-",IF(Veriler!C135<=0,0.000001,Veriler!C135)) -> - | E142: 133 | F142: - | G142: 5440.490652 | H142: 2006.623897 | I142: 3850.124304 | J142: 224990.4463
B143: 134 | C143: =IF(Veriler!C136="","-",IF(Veriler!C136<=0,0.000001,Veriler!C136)) -> - | E143: 134 | F143: - | G143: 5478.299853 | H143: 2009.729695 | I143: 3867.555776 | J143: 235826.7604
B144: 135 | C144: =IF(Veriler!C137="","-",IF(Veriler!C137<=0,0.000001,Veriler!C137)) -> - | E144: 135 | F144: - | G144: 5516.109054 | H144: 2012.812401 | I144: 3884.935687 | J144: 247184.9887
B145: 136 | C145: =IF(Veriler!C138="","-",IF(Veriler!C138<=0,0.000001,Veriler!C138)) -> - | E145: 136 | F145: - | G145: 5553.918255 | H145: 2015.872356 | I145: 3902.264571 | J145: 259090.2684
B146: 137 | C146: =IF(Veriler!C139="","-",IF(Veriler!C139<=0,0.000001,Veriler!C139)) -> - | E146: 137 | F146: - | G146: 5591.727456 | H146: 2018.909894 | I146: 3919.542949 | J146: 271568.9473
B147: 138 | C147: =IF(Veriler!C140="","-",IF(Veriler!C140<=0,0.000001,Veriler!C140)) -> - | E147: 138 | F147: - | G147: 5629.536657 | H147: 2021.925341 | I147: 3936.771337 | J147: 284648.6423
B148: 139 | C148: =IF(Veriler!C141="","-",IF(Veriler!C141<=0,0.000001,Veriler!C141)) -> - | E148: 139 | F148: - | G148: 5667.345858 | H148: 2024.919015 | I148: 3953.950239 | J148: 298358.3005
B149: 140 | C149: =IF(Veriler!C142="","-",IF(Veriler!C142<=0,0.000001,Veriler!C142)) -> - | E149: 140 | F149: - | G149: 5705.155059 | H149: 2027.891229 | I149: 3971.080153 | J149: 312728.2629
B150: 141 | C150: =IF(Veriler!C143="","-",IF(Veriler!C143<=0,0.000001,Veriler!C143)) -> - | E150: 141 | F150: - | G150: 5742.96426 | H150: 2030.842289 | I150: 3988.161567 | J150: 327790.3322
B151: 142 | C151: =IF(Veriler!C144="","-",IF(Veriler!C144<=0,0.000001,Veriler!C144)) -> - | E151: 142 | F151: - | G151: 5780.77346 | H151: 2033.772492 | I151: 4005.19496 | J151: 343577.8426
B152: 143 | C152: =IF(Veriler!C145="","-",IF(Veriler!C145<=0,0.000001,Veriler!C145)) -> - | E152: 143 | F152: - | G152: 5818.582661 | H152: 2036.682133 | I152: 4022.180804 | J152: 360125.7339
B153: 144 | C153: =IF(Veriler!C146="","-",IF(Veriler!C146<=0,0.000001,Veriler!C146)) -> - | E153: 144 | F153: - | G153: 5856.391862 | H153: 2039.571497 | I153: 4039.119563 | J153: 377470.6285
B154: 145 | C154: =IF(Veriler!C147="","-",IF(Veriler!C147<=0,0.000001,Veriler!C147)) -> - | E154: 145 | F154: - | G154: 5894.201063 | H154: 2042.440865 | I154: 4056.011693 | J154: 395650.9129
B155: 146 | C155: =IF(Veriler!C148="","-",IF(Veriler!C148<=0,0.000001,Veriler!C148)) -> - | E155: 146 | F155: - | G155: 5932.010264 | H155: 2045.290513 | I155: 4072.857643 | J155: 414706.8224
B156: 147 | C156: =IF(Veriler!C149="","-",IF(Veriler!C149<=0,0.000001,Veriler!C149)) -> - | E156: 147 | F156: - | G156: 5969.819465 | H156: 2048.120709 | I156: 4089.657854 | J156: 434680.53
B157: 148 | C157: =IF(Veriler!C150="","-",IF(Veriler!C150<=0,0.000001,Veriler!C150)) -> - | E157: 148 | F157: - | G157: 6007.628666 | H157: 2050.931717 | I157: 4106.41276 | J157: 455616.2402
B158: 149 | C158: =IF(Veriler!C151="","-",IF(Veriler!C151<=0,0.000001,Veriler!C151)) -> - | E158: 149 | F158: - | G158: 6045.437867 | H158: 2053.723795 | I158: 4123.122789 | J158: 477560.2862
B159: 150 | C159: =IF(Veriler!C152="","-",IF(Veriler!C152<=0,0.000001,Veriler!C152)) -> - | E159: 150 | F159: - | G159: 6083.247067 | H159: 2056.497197 | I159: 4139.788359 | J159: 500561.2329
B160: 151 | C160: =IF(Veriler!C153="","-",IF(Veriler!C153<=0,0.000001,Veriler!C153)) -> - | E160: 151 | F160: - | G160: 6121.056268 | H160: 2059.252172 | I160: 4156.409886 | J160: 524669.9845
B161: 152 | C161: =IF(Veriler!C154="","-",IF(Veriler!C154<=0,0.000001,Veriler!C154)) -> - | E161: 152 | F161: - | G161: 6158.865469 | H161: 2061.988961 | I161: 4172.987775 | J161: 549939.8964
B162: 153 | C162: =IF(Veriler!C155="","-",IF(Veriler!C155<=0,0.000001,Veriler!C155)) -> - | E162: 153 | F162: - | G162: 6196.67467 | H162: 2064.707804 | I162: 4189.522428 | J162: 576426.8943
B163: 154 | C163: =IF(Veriler!C156="","-",IF(Veriler!C156<=0,0.000001,Veriler!C156)) -> - | E163: 154 | F163: - | G163: 6234.483871 | H163: 2067.408935 | I163: 4206.014238 | J163: 604189.5971
B164: 155 | C164: =IF(Veriler!C157="","-",IF(Veriler!C157<=0,0.000001,Veriler!C157)) -> - | E164: 155 | F164: - | G164: 6272.293072 | H164: 2070.092582 | I164: 4222.463594 | J164: 633289.4473
B165: 156 | C165: =IF(Veriler!C158="","-",IF(Veriler!C158<=0,0.000001,Veriler!C158)) -> - | E165: 156 | F165: - | G165: 6310.102273 | H165: 2072.758971 | I165: 4238.870878 | J165: 663790.8463
B166: 157 | C166: =IF(Veriler!C159="","-",IF(Veriler!C159<=0,0.000001,Veriler!C159)) -> - | E166: 157 | F166: - | G166: 6347.911474 | H166: 2075.408323 | I166: 4255.236466 | J166: 695761.2977
B167: 158 | C167: =IF(Veriler!C160="","-",IF(Veriler!C160<=0,0.000001,Veriler!C160)) -> - | E167: 158 | F167: - | G167: 6385.720674 | H167: 2078.040853 | I167: 4271.560729 | J167: 729271.5561
B168: 159 | C168: =IF(Veriler!C161="","-",IF(Veriler!C161<=0,0.000001,Veriler!C161)) -> - | E168: 159 | F168: - | G168: 6423.529875 | H168: 2080.656773 | I168: 4287.844031 | J168: 764395.7838
B169: 160 | C169: =IF(Veriler!C162="","-",IF(Veriler!C162<=0,0.000001,Veriler!C162)) -> - | E169: 160 | F169: - | G169: 6461.339076 | H169: 2083.256293 | I169: 4304.086732 | J169: 801211.7152
B170: 161 | C170: =IF(Veriler!C163="","-",IF(Veriler!C163<=0,0.000001,Veriler!C163)) -> - | E170: 161 | F170: - | G170: 6499.148277 | H170: 2085.839617 | I170: 4320.289187 | J170: 839800.8285
B171: 162 | C171: =IF(Veriler!C164="","-",IF(Veriler!C164<=0,0.000001,Veriler!C164)) -> - | E171: 162 | F171: - | G171: 6536.957478 | H171: 2088.406945 | I171: 4336.451743 | J171: 880248.5264
B172: 163 | C172: =IF(Veriler!C165="","-",IF(Veriler!C165<=0,0.000001,Veriler!C165)) -> - | E172: 163 | F172: - | G172: 6574.766679 | H172: 2090.958473 | I172: 4352.574745 | J172: 922644.3245
B173: 164 | C173: =IF(Veriler!C166="","-",IF(Veriler!C166<=0,0.000001,Veriler!C166)) -> - | E173: =B173 -> 164 | F173: =C173 -> - | G173: =$G$3*E173+$H$3 -> 6612.57588 | H173: =$G$4*LN(E173)+$H$4 -> 2093.494396 | I173: =$G$5*E173^$H$5 -> 4368.65853 | J173: =$G$6 *EXP($H$6* E173) -> 967082.0502
B174: 165 | C174: =IF(Veriler!C167="","-",IF(Veriler!C167<=0,0.000001,Veriler!C167)) -> - | E174: 165 | F174: - | G174: 6650.385081 | H174: 2096.014903 | I174: 4384.703434 | J174: 1013660.05
B175: 166 | C175: =IF(Veriler!C168="","-",IF(Veriler!C168<=0,0.000001,Veriler!C168)) -> - | E175: 166 | F175: - | G175: 6688.194282 | H175: 2098.52018 | I175: 4400.709783 | J175: 1062481.406
B176: 167 | C176: =IF(Veriler!C169="","-",IF(Veriler!C169<=0,0.000001,Veriler!C169)) -> - | E176: 167 | F176: - | G176: 6726.003482 | H176: 2101.01041 | I176: 4416.677904 | J176: 1113654.167
B177: 168 | C177: =IF(Veriler!C170="","-",IF(Veriler!C170<=0,0.000001,Veriler!C170)) -> - | E177: 168 | F177: - | G177: 6763.812683 | H177: 2103.485773 | I177: 4432.608114 | J177: 1167291.584
B178: 169 | C178: =IF(Veriler!C171="","-",IF(Veriler!C171<=0,0.000001,Veriler!C171)) -> - | E178: 169 | F178: - | G178: 6801.621884 | H178: 2105.946445 | I178: 4448.50073 | J178: 1223512.363
B179: 170 | C179: =IF(Veriler!C172="","-",IF(Veriler!C172<=0,0.000001,Veriler!C172)) -> - | E179: 170 | F179: - | G179: 6839.431085 | H179: 2108.3926 | I179: 4464.35606 | J179: 1282440.929
B180: 171 | C180: =IF(Veriler!C173="","-",IF(Veriler!C173<=0,0.000001,Veriler!C173)) -> - | E180: 171 | F180: - | G180: 6877.240286 | H180: 2110.824408 | I180: 4480.174412 | J180: 1344207.697
B181: 172 | C181: =IF(Veriler!C174="","-",IF(Veriler!C174<=0,0.000001,Veriler!C174)) -> - | E181: 172 | F181: - | G181: 6915.049487 | H181: 2113.242037 | I181: 4495.956086 | J181: 1408949.366
B182: 173 | C182: =IF(Veriler!C175="","-",IF(Veriler!C175<=0,0.000001,Veriler!C175)) -> - | E182: 173 | F182: - | G182: 6952.858688 | H182: 2115.64565 | I182: 4511.701382 | J182: 1476809.216
B183: 174 | C183: =IF(Veriler!C176="","-",IF(Veriler!C176<=0,0.000001,Veriler!C176)) -> - | E183: 174 | F183: - | G183: 6990.667889 | H183: 2118.035409 | I183: 4527.410591 | J183: 1547937.429
B184: 175 | C184: =IF(Veriler!C177="","-",IF(Veriler!C177<=0,0.000001,Veriler!C177)) -> - | E184: 175 | F184: - | G184: 7028.477089 | H184: 2120.411473 | I184: 4543.084003 | J184: 1622491.423
B185: 176 | C185: =IF(Veriler!C178="","-",IF(Veriler!C178<=0,0.000001,Veriler!C178)) -> - | E185: 176 | F185: - | G185: 7066.28629 | H185: 2122.773999 | I185: 4558.721905 | J185: 1700636.193
B186: 177 | C186: =IF(Veriler!C179="","-",IF(Veriler!C179<=0,0.000001,Veriler!C179)) -> - | E186: 177 | F186: - | G186: 7104.095491 | H186: 2125.123139 | I186: 4574.324576 | J186: 1782544.684
B187: 178 | C187: =IF(Veriler!C180="","-",IF(Veriler!C180<=0,0.000001,Veriler!C180)) -> - | E187: 178 | F187: - | G187: 7141.904692 | H187: 2127.459044 | I187: 4589.892296 | J187: 1868398.17
B188: 179 | C188: =IF(Veriler!C181="","-",IF(Veriler!C181<=0,0.000001,Veriler!C181)) -> - | E188: 179 | F188: - | G188: 7179.713893 | H188: 2129.781863 | I188: 4605.425337 | J188: 1958386.656
B189: 180 | C189: =IF(Veriler!C182="","-",IF(Veriler!C182<=0,0.000001,Veriler!C182)) -> - | E189: 180 | F189: - | G189: 7217.523094 | H189: 2132.091741 | I189: 4620.923972 | J189: 2052709.296
B190: 181 | C190: =IF(Veriler!C183="","-",IF(Veriler!C183<=0,0.000001,Veriler!C183)) -> - | E190: 181 | F190: - | G190: 7255.332295 | H190: 2134.388822 | I190: 4636.388465 | J190: 2151574.84
B191: 182 | C191: =IF(Veriler!C184="","-",IF(Veriler!C184<=0,0.000001,Veriler!C184)) -> - | E191: 182 | F191: - | G191: 7293.141496 | H191: 2136.673247 | I191: 4651.81908 | J191: 2255202.088
B192: 183 | C192: =IF(Veriler!C185="","-",IF(Veriler!C185<=0,0.000001,Veriler!C185)) -> - | E192: 183 | F192: - | G192: 7330.950696 | H192: 2138.945155 | I192: 4667.216078 | J192: 2363820.381
B193: 184 | C193: =IF(Veriler!C186="","-",IF(Veriler!C186<=0,0.000001,Veriler!C186)) -> - | E193: 184 | F193: - | G193: 7368.759897 | H193: 2141.204681 | I193: 4682.579714 | J193: 2477670.105
B194: 185 | C194: =IF(Veriler!C187="","-",IF(Veriler!C187<=0,0.000001,Veriler!C187)) -> - | E194: 185 | F194: - | G194: 7406.569098 | H194: 2143.451961 | I194: 4697.910242 | J194: 2597003.224
B195: 186 | C195: =IF(Veriler!C188="","-",IF(Veriler!C188<=0,0.000001,Veriler!C188)) -> - | E195: 186 | F195: - | G195: 7444.378299 | H195: 2145.687126 | I195: 4713.20791 | J195: 2722083.836
B196: 187 | C196: =IF(Veriler!C189="","-",IF(Veriler!C189<=0,0.000001,Veriler!C189)) -> - | E196: 187 | F196: - | G196: 7482.1875 | H196: 2147.910306 | I196: 4728.472967 | J196: 2853188.761
B197: 188 | C197: =IF(Veriler!C190="","-",IF(Veriler!C190<=0,0.000001,Veriler!C190)) -> - | E197: 188 | F197: - | G197: 7519.996701 | H197: 2150.121629 | I197: 4743.705654 | J197: 2990608.15
B198: 189 | C198: =IF(Veriler!C191="","-",IF(Veriler!C191<=0,0.000001,Veriler!C191)) -> - | E198: 189 | F198: - | G198: 7557.805902 | H198: 2152.32122 | I198: 4758.906213 | J198: 3134646.13
B199: 190 | C199: =IF(Veriler!C192="","-",IF(Veriler!C192<=0,0.000001,Veriler!C192)) -> - | E199: 190 | F199: - | G199: 7595.615103 | H199: 2154.509205 | I199: 4774.07488 | J199: 3285621.474
B200: 191 | C200: =IF(Veriler!C193="","-",IF(Veriler!C193<=0,0.000001,Veriler!C193)) -> - | E200: 191 | F200: - | G200: 7633.424304 | H200: 2156.685704 | I200: 4789.211891 | J200: 3443868.311
B201: 192 | C201: =IF(Veriler!C194="","-",IF(Veriler!C194<=0,0.000001,Veriler!C194)) -> - | E201: 192 | F201: - | G201: 7671.233504 | H201: 2158.850837 | I201: 4804.317475 | J201: 3609736.86
B202: 193 | C202: =IF(Veriler!C195="","-",IF(Veriler!C195<=0,0.000001,Veriler!C195)) -> - | E202: 193 | F202: - | G202: 7709.042705 | H202: 2161.004723 | I202: 4819.391862 | J202: 3783594.209
B203: 194 | C203: =IF(Veriler!C196="","-",IF(Veriler!C196<=0,0.000001,Veriler!C196)) -> - | E203: 194 | F203: - | G203: 7746.851906 | H203: 2163.147477 | I203: 4834.435277 | J203: 3965825.126
... 56 more rows
